fUSD/lending_fUSD_20250423
["ID","MTS","AMOUNT","RATE_DAILY","PERIOD"]
[358690225,1745374141589,-1371.509485,0.00046645,120]
[358690226,1745374141618,-1371.509485,0.00046645,120]
[358690227,1745374141647,-1371.509485,0.00046645,120]
[358690228,1745374141675,-1371.509485,0.00046645,120]
[358690229,1745374141705,-1371.509485,0.00046645,120]
[358690230,1745374141735,-1371.509485,0.00046645,120]
[358690231,1745374141772,-1371.509485,0.00046645,120]
[358690232,1745374141801,-1371.509485,0.00046645,30]
[358690233,1745374141830,-1371.509485,0.00046645,30]
[358690234,1745374141859,-1371.509485,0.00046645,30]
[358690235,1745374141887,-1371.509485,0.00046645,30]
[358690236,1745374141914,-1371.509485,0.00046645,30]
[358690237,1745374141944,-1371.509485,0.00046645,30]
[358690238,1745374141974,-1371.509485,0.00046645,30]
[358690239,1745374142003,-1371.509485,0.00046645,30]
[358690240,1745374142032,-1371.509485,0.00046645,30]
[358690241,1745374142062,-1371.509485,0.00046645,30]
[358690242,1745374142091,-500.0,0.00046645,120]
[358690243,1745374142120,-500.0,0.00046645,120]
[358690244,1745374142150,-500.0,0.00046645,120]
[358690245,1745374142179,-540.12034695,0.00046645,120]
[358690246,1745374142208,-500.0,0.00046645,120]
[358690247,1745374142237,-500.0,0.00046645,120]
[358690248,1745374142267,-559.40000108,0.00046645,120]
[358690250,1745374185331,265.0,0.00046645,30]
[358690251,1745374186096,445.246,0.00046645,30]
[358690259,1745374231896,-250.0,0.00021,2]
[358690260,1745374231906,-250.0,0.00021445,2]
[358690261,1745374231916,-150.0,0.00021445,2]
[358690262,1745374231927,-250.0,0.00022495,2]
[358690263,1745374231936,-150.0,0.00022495,2]
[358690264,1745374231946,-300.0,0.00023,2]
[358690266,1745374231956,-202.37332141,0.00023,2]
[358690268,1745374231966,-304.29,0.00023091,2]
[358690270,1745374231975,-250.0,0.000231,2]
[358690271,1745374231985,-150.0,0.000231,2]
[358690273,1745374232228,-176.22169985,0.00023243,2]
[358690274,1745374232263,-300.0,0.00023342,2]
[358690275,1745374232273,-301.73,0.00023343,2]
[358690276,1745374232283,-302.19,0.00023343,2]
[358690277,1745374232294,-302.36,0.00023343,2]
[358690278,1745374232303,-303.87,0.00023343,2]
[358690279,1745374232313,-301.24,0.00023343,2]
[358690280,1745374232323,-300.24,0.00023343,2]
[358690281,1745374232332,-302.48,0.00023343,2]
[358690282,1745374232341,-303.12,0.00023343,2]
[358690283,1745374232351,-302.87,0.00023343,2]
[358690284,1745374232361,-300.62,0.00023343,2]
[358690285,1745374232370,-302.19,0.00023343,2]
[358690286,1745374232380,-305.33,0.00023343,2]
[358690287,1745374232390,-304.81,0.00023343,2]
[358690288,1745374232399,-304.08,0.00023343,2]
[358690289,1745374232408,-305.43,0.00023343,2]
[358690290,1745374232417,-303.46,0.00023343,2]
[358690291,1745374232427,-303.72,0.00023343,2]
[358690292,1745374232436,-304.64,0.00023343,2]
[358690293,1745374232445,-302.62,0.00023343,2]
[358690294,1745374232454,-302.67,0.00023343,2]
[358690295,1745374232463,-300.61,0.00023343,2]
[358690296,1745374232472,-301.98,0.00023343,2]
[358690297,1745374232481,-300.73,0.00023343,2]
[358690298,1745374232491,-304.87,0.00023343,2]
[358690299,1745374232500,-304.07,0.00023343,2]
[358690300,1745374232510,-305.28,0.00023343,2]
[358690301,1745374232520,-303.1,0.00023343,2]
[358690302,1745374232529,-303.22,0.00023343,2]
[358690303,1745374232539,-304.27,0.00023343,2]
[358690304,1745374232548,-182.36508653,0.00023343,2]
[358690305,1745374232561,-122.39491347,0.00023343,2]
[358690306,1745374232570,-304.6,0.00023343,2]
[358690307,1745374232580,-301.13,0.00023343,2]
[358690308,1745374232590,-301.09,0.00023343,2]
[358690309,1745374232599,-302.41,0.00023343,2]
[358690310,1745374232609,-303.55,0.00023343,2]
[358690311,1745374232618,-300.5,0.00023343,2]
[358690312,1745374232628,-303.17,0.00023343,2]
[358690313,1745374232638,-109.48498853,0.00023343,2]
[358690314,1745374232759,-193.70501147,0.00023343,2]
[358690315,1745374232773,-303.69,0.00023343,2]
[358690316,1745374232784,-304.16,0.00023343,2]
[358690317,1745374232798,-227.85628111,0.000249,5]
[358690318,1745374232807,-288.99491166,0.00025,2]
[358690319,1745374232820,-61.00508834,0.00025,2]
[358690320,1745374232830,-417.31079552,0.00025,2]
[358690321,1745374232847,-2751.00920448,0.00025,2]
[358690322,1745374232857,-420.0,0.0002533,2]
[358690323,1745374232868,-300.35,0.00026126,2]
[358690324,1745374232878,-231.38393204,0.000266,2]
[358690325,1745374232888,-232.80143714,0.00026677,2]
[358690326,1745374233014,-10396.17378807,0.00026677,2]
[358690327,1745374233024,-400.0,0.00027,2]
[358690328,1745374233034,-587.0,0.00027487,2]
[358690329,1745374233045,-250.62962809,0.00027748,2]
[358690330,1745374233055,-450.0,0.00029,2]
[358690331,1745374233065,-823.0,0.00029829,2]
[358690332,1745374233074,-500.0,0.00030998,2]
[358690333,1745374233083,-500.0,0.00031,2]
[358690334,1745374233094,-783.001,0.00031098,2]
[358690335,1745374233103,-565.6,0.00031098,2]
[358690336,1745374233113,-3984.0,0.00031098,2]
[358690337,1745374233122,-876.0,0.00031098,2]
[358690338,1745374233133,-1152.0,0.00032369,2]
[358690339,1745374233143,-550.0,0.00033,2]
[358690340,1745374233153,-3636.6846416,0.00033484,2]
[358690341,1745374233163,-3055.373,0.00034098,2]
[358690342,1745374233174,-876.0,0.00034098,2]
[358690343,1745374233183,-600.0,0.00035,2]
[358690344,1745374233193,-354.0,0.00035126,2]
[358690345,1745374233203,-647.66732546,0.00035457,2]
[358690346,1745374233212,-1152.39081006,0.00036711,2]
[358690347,1745374233222,-710.63,0.00036947,2]
[358690348,1745374233231,-650.0,0.00037,2]
[358690349,1745374233241,-1244.4490766,0.00037636,2]
[358690350,1745374233251,-405.87,0.00037765,3]
[358690351,1745374233261,-1001.73,0.00038037,2]
[358690352,1745374233271,-250.0,0.00038351,2]
[358690353,1745374233281,-1337.87154382,0.00038548,2]
[358690354,1745374233294,-3604.97698369,0.00038548,2]
[358690355,1745374233306,-322.98459677,0.00038548,2]
[358690356,1745374233327,-3081.98986337,0.00038548,2]
[358690362,1745374237835,-301.22,0.00023091,2]
[358690363,1745374237846,-134.14869031,0.00037098,2]
[358690364,1745374237861,-154.57730969,0.00037098,2]
[358690365,1745374237872,-15552.17701235,0.00038548,2]
[358690366,1745374237883,-370.96,0.00038737,2]
[358690367,1745374237894,-500.0,0.0003893,7]
[358690368,1745374237904,-700.0,0.00039,2]
[358690369,1745374237915,-137.61156727,0.00039231,2]
[358690370,1745374237928,-15.41843273,0.00039231,2]
[358690371,1745374237938,-621.48009671,0.00039542,2]
[358690372,1745374237950,-78.51990329,0.00039542,2]
[358690373,1745374237962,-500.0,0.00039726,15]
[358690374,1745374237973,-500.0,0.00039726,15]
[358690375,1745374237984,-500.0,0.00039726,15]
[358690376,1745374237994,-500.0,0.00039726,15]
[358690377,1745374238004,-500.0,0.00039726,15]
[358690378,1745374238014,-500.0,0.00039726,15]
[358690379,1745374238022,-59.72178067,0.00039726,15]
[358690401,1745374238256,150.0,0.00027,120]
[358690423,1745374238574,150.0,0.000323,120]
[358690424,1745374238849,150.0,0.000376,120]
[358690425,1745374239145,150.0,0.000429,120]
[358690427,1745374240097,-440.27821933,0.00039726,15]
[358690428,1745374240108,-500.0,0.00039726,15]
[358690429,1745374240118,-500.0,0.00039726,15]
[358690430,1745374240129,-500.0,0.00039726,15]
[358690431,1745374240138,-500.0,0.00039726,15]
[358690432,1745374240148,-500.0,0.00039726,15]
[358690433,1745374240159,-500.0,0.00039726,15]
[358690434,1745374240168,-537.63150488,0.00039726,15]
[358690435,1745374240422,-500.0,0.00039726,15]
[358690436,1745374240432,-500.0,0.00039726,15]
[358690437,1745374240443,-500.0,0.00039726,15]
[358690438,1745374240453,-500.0,0.00039726,15]
[358690439,1745374240463,-500.0,0.00039726,15]
[358690440,1745374240472,-500.0,0.00039726,15]
[358690441,1745374240481,-500.0,0.00039726,15]
[358690442,1745374240491,-500.0,0.00039726,15]
[358690443,1745374240501,-500.0,0.00039726,15]
[358690444,1745374240511,-500.0,0.00039726,15]
[358690445,1745374240520,-500.0,0.00039726,15]
[358690446,1745374240530,-500.0,0.00039726,15]
[358690447,1745374240540,-500.0,0.00039726,15]
[358690448,1745374240552,-500.0,0.00039726,15]
[358690449,1745374240562,-500.0,0.00039726,15]
[358690450,1745374240572,-500.0,0.00039726,15]
[358690451,1745374240581,-500.0,0.00039726,15]
[358690452,1745374240591,-500.0,0.00039726,15]
[358690453,1745374240600,-500.0,0.00039726,15]
[358690454,1745374240609,-500.0,0.00039726,15]
[358690455,1745374240619,-500.0,0.00039726,15]
[358690456,1745374240629,-500.0,0.00039726,15]
[358690457,1745374240639,-500.0,0.00039726,15]
[358690458,1745374240649,-500.0,0.00039726,15]
[358690459,1745374240658,-500.0,0.00039726,15]
[358690460,1745374240668,-220.14308844,0.00039726,2]
[358690461,1745374240679,-1000.0,0.00040008,2]
[358690462,1745374240688,-1001.73,0.00040301,2]
[358690463,1745374240698,-750.0,0.00041,2]
[358690464,1745374240708,-1001.73,0.00042565,2]
[358690465,1745374240718,-227.85628109,0.000429,17]
[358690466,1745374240727,-800.0,0.00043,2]
[358690467,1745374240738,-247.81066593,0.00043336,29]
[358690468,1745374240748,-338.0,0.000436,5]
[358690469,1745374240759,-362.54358539,0.00043836,2]
[358690470,1745374240769,-1001.73,0.00044829,2]
[358690471,1745374240780,-850.0,0.00045,2]
[358690472,1745374240790,-1000.0,0.00045009,2]
[358690473,1745374240799,-6617.3137,0.00045105,2]
[358690474,1745374240808,-185.09,0.00045105,2]
[358690475,1745374240818,-5000.0,0.00045105,120]
[358690476,1745374240827,-230.44474542,0.00045105,2]
[358690477,1745374240836,-219.46913862,0.00045105,2]
[358690478,1745374240846,-154.752176,0.00045174,14]
[358690479,1745374240855,-166.219278,0.00045174,14]
[358690480,1745374240865,-9320.37349474,0.00045181,3]
[358690481,1745374240874,-163.49,0.00045184,15]
[358690482,1745374240883,-435.86772442,0.00045184,120]
[358690483,1745374240893,-260970.457853,0.00045185,3]
[358690484,1745374240902,-42581.78901203,0.00045201,30]
[358690485,1745374240911,-151.0,0.00045204,2]
[358690486,1745374240920,-151.0,0.00045204,2]
[358690487,1745374240929,-1026.0,0.00045205,7]
[358690488,1745374240940,-37047.91895532,0.00045205,30]
[358690489,1745374240949,-150.75,0.00045205,120]
[358690490,1745374240958,-152.098325,0.00045205,14]
[358690491,1745374240967,-246.262243,0.00045205,14]
[358690492,1745374240976,-246.262243,0.00045205,14]
[358690493,1745374240986,-246.262243,0.00045205,14]
[358690494,1745374240996,-246.262243,0.00045205,14]
[358690495,1745374241006,-246.262243,0.00045205,14]
[358690496,1745374241016,-246.262243,0.00045205,14]
[358690497,1745374241025,-246.262243,0.00045205,14]
[358690498,1745374241034,-246.262243,0.00045205,14]
[358690499,1745374241043,-246.262243,0.00045205,14]
[358690500,1745374241054,-246.262243,0.00045205,14]
[358690501,1745374241063,-246.262243,0.00045205,14]
[358690502,1745374241073,-246.262243,0.00045205,14]
[358690503,1745374241082,-246.262243,0.00045205,14]
[358690504,1745374241091,-246.262243,0.00045205,14]
[358690505,1745374241101,-246.262243,0.00045205,14]
[358690506,1745374241110,-246.262243,0.00045205,14]
[358690507,1745374241119,-246.262243,0.00045205,14]
[358690508,1745374241128,-246.262243,0.00045205,14]
[358690509,1745374241138,-246.262243,0.00045205,14]
[358690510,1745374241147,-246.262246,0.00045205,14]
[358690511,1745374241156,-151.0,0.00045205,14]
[358690512,1745374241165,-151.0,0.00045205,14]
[358690513,1745374241175,-151.0,0.00045205,14]
[358690514,1745374241185,-292.096863,0.00045205,14]
[358690515,1745374241195,-151.0,0.00045205,14]
[358690516,1745374241204,-151.0,0.00045205,14]
[358690517,1745374241213,-151.0,0.00045205,14]
[358690518,1745374241222,-151.0,0.00045205,14]
[358690519,1745374241231,-151.0,0.00045205,14]
[358690520,1745374241240,-151.0,0.00045205,14]
[358690521,1745374241250,-163.108387,0.00045205,14]
[358690522,1745374241259,-151.0,0.00045205,14]
[358690523,1745374241268,-151.0,0.00045205,14]
[358690524,1745374241277,-151.0,0.00045205,14]
[358690525,1745374241286,-151.0,0.00045205,14]
[358690526,1745374241295,-161.075313,0.00045205,14]
[358690527,1745374241305,-2853.36,0.00045205,30]
[358690528,1745374241314,-2853.36,0.00045205,30]
[358690529,1745374241324,-2853.36,0.00045205,30]
[358690530,1745374241333,-2853.36,0.00045205,30]
[358690531,1745374241342,-2853.36,0.00045205,30]
[358690532,1745374241351,-2853.36,0.00045205,30]
[358690533,1745374241360,-2853.36,0.00045205,30]
[358690534,1745374241370,-2853.36,0.00045205,30]
[358690535,1745374241379,-2853.36,0.00045205,30]
[358690536,1745374241389,-2853.36,0.00045205,30]
[358690537,1745374241398,-2853.36,0.00045205,30]
[358690538,1745374241407,-2853.36,0.00045205,30]
[358690539,1745374241417,-2853.36,0.00045205,30]
[358690540,1745374241426,-2853.36,0.00045205,30]
[358690541,1745374241435,-2853.36,0.00045205,30]
[358690542,1745374241444,-2853.36,0.00045205,30]
[358690543,1745374241454,-2853.36,0.00045205,30]
[358690544,1745374241463,-2853.36,0.00045205,30]
[358690545,1745374241473,-2853.36,0.00045205,30]
[358690546,1745374241482,-2853.36,0.00045205,30]
[358690547,1745374241492,-2853.36,0.00045205,30]
[358690548,1745374241502,-2179.67214517,0.00045205,30]
[358690584,1745374242869,-151.0,0.00045204,2]
[358690585,1745374242879,-151.0,0.00045204,2]
[358690586,1745374242890,-673.68785483,0.00045205,30]
[358690587,1745374242904,-2853.36,0.00045205,30]
[358690588,1745374242914,-2853.43394634,0.00045205,30]
[358690589,1745374242924,-156.192812,0.00045205,14]
[358690590,1745374242934,-152.219188,0.00045205,14]
[358690591,1745374242946,-414.045129,0.00045205,14]
[358690592,1745374242957,-414.045129,0.00045205,14]
[358690593,1745374242969,-414.045129,0.00045205,14]
[358690594,1745374242979,-414.045129,0.00045205,14]
[358690595,1745374242990,-414.045129,0.00045205,14]
[358690596,1745374243002,-414.045129,0.00045205,14]
[358690597,1745374243013,-414.045129,0.00045205,14]
[358690598,1745374243023,-414.045129,0.00045205,14]
[358690599,1745374243035,-414.045129,0.00045205,14]
[358690600,1745374243047,-414.045129,0.00045205,14]
[358690601,1745374243058,-414.045129,0.00045205,14]
[358690602,1745374243068,-414.045129,0.00045205,14]
[358690603,1745374243080,-414.045129,0.00045205,14]
[358690604,1745374243089,-414.045129,0.00045205,14]
[358690605,1745374243099,-164.61351,0.00045205,14]
[358690606,1745374243110,-151.0,0.00045205,14]
[358690607,1745374243120,-151.0,0.00045205,14]
[358690608,1745374243130,-151.0,0.00045205,14]
[358690610,1745374243140,-151.0,0.00045205,14]
[358690611,1745374243150,-151.0,0.00045205,14]
[358690612,1745374243162,-151.0,0.00045205,14]
[358690613,1745374243171,-151.0,0.00045205,14]
[358690614,1745374243183,-151.0,0.00045205,14]
[358690615,1745374243193,-151.0,0.00045205,14]
[358690616,1745374243203,-151.0,0.00045205,14]
[358690617,1745374243213,-151.0,0.00045205,14]
[358690618,1745374243224,-151.0,0.00045205,14]
[358690619,1745374243233,-151.0,0.00045205,14]
[358690620,1745374243243,-151.0,0.00045205,14]
[358690621,1745374243254,-156.796252,0.00045205,14]
[358690622,1745374243264,-1000.0,0.00045205,28]
[358690623,1745374243274,-1000.0,0.00045205,28]
[358690624,1745374243283,-1000.0,0.00045205,28]
[358690625,1745374243293,-159.364782,0.00045205,14]
[358690626,1745374243304,-500.0,0.00045205,30]
[358690627,1745374243314,-948.99,0.00045205,30]
[358690628,1745374243323,-948.99,0.00045205,30]
[358690629,1745374243334,-948.99,0.00045205,30]
[358690630,1745374243348,-948.99,0.00045205,30]
[358690631,1745374243358,-948.99,0.00045205,30]
[358690632,1745374243368,-948.99,0.00045205,30]
[358690633,1745374243379,-948.99,0.00045205,30]
[358690634,1745374243389,-948.99,0.00045205,30]
[358690635,1745374243400,-948.99,0.00045205,30]
[358690636,1745374243410,-948.99,0.00045205,30]
[358690637,1745374243420,-948.99,0.00045205,30]
[358690638,1745374243431,-948.99,0.00045205,30]
[358690639,1745374243441,-948.99,0.00045205,30]
[358690640,1745374243451,-948.99,0.00045205,30]
[358690641,1745374243462,-948.99,0.00045205,30]
[358690642,1745374243473,-948.99,0.00045205,30]
[358690643,1745374243482,-948.99,0.00045205,30]
[358690644,1745374243493,-948.99,0.00045205,30]
[358690645,1745374243504,-151.0,0.00045205,14]
[358690646,1745374243515,-948.99,0.00045205,30]
[358690647,1745374243526,-948.99,0.00045205,30]
[358690648,1745374243538,-948.99,0.00045205,30]
[358690649,1745374243547,-948.99,0.00045205,30]
[358690650,1745374243558,-151.0,0.00045205,14]
[358690651,1745374243568,-948.99,0.00045205,30]
[358690652,1745374243578,-151.0,0.00045205,14]
[358690653,1745374243589,-949.16523457,0.00045205,30]
[358690654,1745374243601,-151.0,0.00045205,14]
[358690655,1745374243612,-500.0,0.00045205,30]
[358690656,1745374243622,-209.421359,0.00045205,14]
[358690657,1745374243632,-500.0,0.00045205,30]
[358690658,1745374243642,-500.0,0.00045205,30]
[358690659,1745374243652,-500.0,0.00045205,30]
[358690660,1745374243662,-500.0,0.00045205,30]
[358690661,1745374243672,-500.0,0.00045205,30]
[358690662,1745374243681,-500.0,0.00045205,30]
[358690663,1745374243691,-500.0,0.00045205,30]
[358690664,1745374243702,-500.0,0.00045205,30]
[358690665,1745374243711,-343.18781019,0.00045205,30]
[358690666,1745374243722,-155.837846,0.00045205,14]
[358690667,1745374243732,-500.0,0.00045205,30]
[358690668,1745374243742,-189.77708146,0.00045205,30]
[358690669,1745374243752,-591.49859436,0.00045205,30]
[358690670,1745374243763,-158.0,0.00045205,30]
[358690671,1745374243783,-259.6836861,0.00045205,30]
[358690672,1745374243793,-500.0,0.00045205,30]
[358690673,1745374243803,-500.0,0.00045205,30]
[358690674,1745374243815,-506.28651311,0.00045205,30]
[358690675,1745374243826,-500.0,0.00045205,30]
[358690676,1745374243838,-514.81524027,0.00045205,30]
[358690677,1745374243848,-500.0,0.00045205,30]
[358690678,1745374243859,-532.48851819,0.00045205,30]
[358690679,1745374243871,-500.0,0.00045205,30]
[358690680,1745374243882,-500.0,0.00045205,30]
[358690681,1745374243895,-500.0,0.00045205,30]
[358690682,1745374243907,-500.0,0.00045205,30]
[358690683,1745374243918,-500.0,0.00045205,30]
[358690684,1745374243930,-500.0,0.00045205,30]
[358690685,1745374243942,-500.0,0.00045205,30]
[358690686,1745374243952,-308.94906826,0.00045205,30]
[358690687,1745374243963,-500.0,0.00045205,30]
[358690688,1745374243974,-500.0,0.00045205,30]
[358690689,1745374243985,-500.0,0.00045205,30]
[358690690,1745374243996,-500.0,0.00045205,30]
[358690691,1745374244007,-500.0,0.00045205,30]
[358690692,1745374244019,-500.0,0.00045205,30]
[358690693,1745374244031,-500.0,0.00045205,30]
[358690694,1745374244043,-500.0,0.00045205,30]
[358690695,1745374244053,-500.0,0.00045205,30]
[358690696,1745374244063,-500.0,0.00045205,30]
[358690697,1745374244074,-500.0,0.00045205,30]
[358690698,1745374244084,-500.0,0.00045205,30]
[358690699,1745374244095,-301.83129706,0.00045205,30]
[358690700,1745374244105,-500.0,0.00045205,30]
[358690701,1745374244115,-500.0,0.00045205,30]
[358690702,1745374244125,-500.0,0.00045205,30]
[358690703,1745374244136,-500.0,0.00045205,30]
[358690704,1745374244146,-500.0,0.00045205,30]
[358690705,1745374244156,-500.0,0.00045205,30]
[358690706,1745374244166,-500.0,0.00045205,30]
[358690707,1745374244176,-500.0,0.00045205,30]
[358690708,1745374244186,-183.00641967,0.00045205,30]
[358690709,1745374244197,-500.0,0.00045205,30]
[358690710,1745374244207,-500.0,0.00045205,30]
[358690711,1745374244227,-500.0,0.00045205,30]
[358690712,1745374244243,-500.0,0.00045205,30]
[358690713,1745374244253,-500.0,0.00045205,30]
[358690714,1745374244264,-500.0,0.00045205,30]
[358690715,1745374244274,-500.0,0.00045205,30]
[358690716,1745374244285,-500.0,0.00045205,30]
[358690717,1745374244296,-500.0,0.00045205,30]
[358690718,1745374244308,-500.0,0.00045205,30]
[358690719,1745374244318,-500.0,0.00045205,30]
[358690720,1745374244329,-443.01391004,0.00045205,30]
[358690722,1745374245575,-56.98608996,0.00045205,30]
[358690723,1745374245586,-474.72833263,0.00045205,30]
[358690724,1745374245596,-138.53399549,0.00045205,30]
[358690725,1745374245609,-492.06600451,0.00045205,30]
[358690726,1745374245620,-630.6,0.00045205,30]
[358690727,1745374245630,-630.6,0.00045205,30]
[358690728,1745374245640,-630.6,0.00045205,30]
[358690729,1745374245650,-630.6,0.00045205,30]
[358690730,1745374245660,-630.6,0.00045205,30]
[358690731,1745374245670,-630.6,0.00045205,30]
[358690732,1745374245679,-630.6,0.00045205,30]
[358690733,1745374245689,-630.6,0.00045205,30]
[358690734,1745374245699,-630.6,0.00045205,30]
[358690735,1745374245708,-630.6,0.00045205,30]
[358690736,1745374245718,-500.0,0.00045205,30]
[358690737,1745374245728,-630.6,0.00045205,30]
[358690738,1745374245738,-500.0,0.00045205,30]
[358690739,1745374245747,-630.6,0.00045205,30]
[358690740,1745374245757,-630.6,0.00045205,30]
[358690741,1745374245767,-500.0,0.00045205,30]
[358690742,1745374245780,-630.6,0.00045205,30]
[358690743,1745374245790,-630.6,0.00045205,30]
[358690744,1745374245801,-500.0,0.00045205,30]
[358690745,1745374245811,-630.6,0.00045205,30]
[358690746,1745374245822,-500.0,0.00045205,30]
[358690747,1745374245832,-500.0,0.00045205,30]
[358690748,1745374245842,-630.6,0.00045205,30]
[358690749,1745374245851,-500.0,0.00045205,30]
[358690750,1745374245864,-630.6,0.00045205,30]
[358690751,1745374245874,-630.6,0.00045205,30]
[358690752,1745374245884,-500.0,0.00045205,30]
[358690753,1745374245894,-500.0,0.00045205,30]
[358690754,1745374245904,-630.6,0.00045205,30]
[358690755,1745374245914,-85.93399549,0.00045205,30]
[358690756,1745374245941,-414.06600451,0.00045205,30]
[358690757,1745374245951,-630.6,0.00045205,30]
[358690758,1745374245961,-500.0,0.00045205,30]
[358690759,1745374245971,-630.6,0.00045205,30]
[358690760,1745374245982,-202.16926695,0.00045205,30]
[358690761,1745374246010,-297.83073305,0.00045205,30]
[358690762,1745374246020,-630.76236242,0.00045205,30]
[358690764,1745374246030,-500.0,0.00045205,30]
[358690766,1745374246041,-500.0,0.00045205,30]
[358690768,1745374246053,-500.0,0.00045205,30]
[358690770,1745374246062,-500.0,0.00045205,30]
[358690772,1745374246072,-500.0,0.00045205,30]
[358690774,1745374246082,-500.0,0.00045205,30]
[358690776,1745374246095,-500.0,0.00045205,30]
[358690778,1745374246105,-500.0,0.00045205,30]
[358690780,1745374246114,-500.0,0.00045205,30]
[358690782,1745374246124,-151.0,0.00045205,14]
[358690784,1745374246135,-500.0,0.00045205,30]
[358690786,1745374246146,-500.0,0.00045205,30]
[358690788,1745374246158,-265.15888766,0.00045205,30]
[358690790,1745374246169,-151.0,0.00045205,14]
[358690792,1745374246180,-500.0,0.00045205,30]
[358690795,1745374246191,-500.0,0.00045205,30]
[358690797,1745374246200,-151.0,0.00045205,14]
[358690799,1745374246211,-500.0,0.00045205,30]
[358690801,1745374246221,-151.0,0.00045205,14]
[358690803,1745374246231,-512.7993644,0.00045205,30]
[358690805,1745374246242,-449.55228878,0.00045205,30]
[358690814,1745374246322,-50.44771122,0.00045205,30]
[358690816,1745374246332,-500.0,0.00045205,30]
[358690818,1745374246342,-500.0,0.00045205,30]
[358690820,1745374246352,-500.0,0.00045205,30]
[358690822,1745374246361,-500.0,0.00045205,30]
[358690824,1745374246371,-500.0,0.00045205,30]
[358690826,1745374246380,-500.0,0.00045205,30]
[358690828,1745374246390,-151.0,0.00045205,14]
[358690830,1745374246400,-500.0,0.00045205,30]
[358690832,1745374246409,-202.298488,0.00045205,14]
[358690834,1745374246419,-500.0,0.00045205,30]
[358690836,1745374246430,-500.0,0.00045205,30]
[358690838,1745374246441,-500.0,0.00045205,30]
[358690840,1745374246451,-500.0,0.00045205,30]
[358690842,1745374246460,-500.0,0.00045205,30]
[358690844,1745374246472,-500.0,0.00045205,30]
[358690846,1745374246482,-552.08318827,0.00045205,30]
[358690848,1745374246491,-307.94111165,0.00045205,30]
[358690850,1745374246501,-500.0,0.00045205,30]
[358690852,1745374246511,-528.99426522,0.00045205,30]
[358690854,1745374246521,-561.38599026,0.00045205,30]
[358690856,1745374246531,-500.0,0.00045205,30]
[358690858,1745374246541,-500.0,0.00045205,30]
[358690873,1745374246795,-500.0,0.00045205,30]
[358690874,1745374246809,-500.0,0.00045205,30]
[358690875,1745374246822,-500.0,0.00045205,30]
[358690876,1745374246831,-500.0,0.00045205,30]
[358690877,1745374246841,-614.75412095,0.00045205,30]
[358690878,1745374246853,-510.81540613,0.00045205,30]
[358690879,1745374246864,-500.0,0.00045205,30]
[358690880,1745374246875,-500.0,0.00045205,30]
[358690881,1745374246885,-500.0,0.00045205,30]
[358690882,1745374246894,-500.0,0.00045205,30]
[358690883,1745374246904,-500.0,0.00045205,30]
[358690884,1745374246914,-500.0,0.00045205,30]
[358690885,1745374246924,-545.9796774,0.00045205,30]
[358690886,1745374246934,-500.0,0.00045205,30]
[358690887,1745374246944,-500.0,0.00045205,30]